[Event "Gibraltar Masters 18th"]
[Site "Gibraltar"]
[Date "2020.01.22"]
[Round "2.31"]
[White "Peralta, Fernando"]
[Black "Murzin, Volodar"]
[Result "1-0"]
[ECO "D46"]
[WhiteElo "2574"]
[BlackElo "2442"]
[PlyCount "147"]
[EventDate "2020.01.21"]
[EventType "swiss"]
[EventRounds "10"]
[EventCountry "GGB"]
[SourceTitle "BritBase"]
[Source "John Saunders"]
[SourceDate "2021.06.05"]
[SourceVersion "1"]
[SourceVersionDate "2021.06.05"]
[SourceQuality "1"]
[TimeControl "40/100:0"]
[WhiteClock "0:06:33"]
[BlackClock "1:10:58"]

1. d4 {[%emt 0:00:00]} d5 {[%emt 0:00:00]} 2. c4 {[%emt 0:00:00]} c6 {[%emt 0:
00:00]} 3. Nf3 {[%emt 0:00:00]} Nf6 {[%emt 0:00:00]} 4. Nc3 {[%emt 0:00:00]} a6
{[%emt 0:00:00]} 5. e3 {[%emt 0:00:00]} e6 {[%emt 0:00:00]} 6. Bd3 {[%emt 0:00:
00]} Nbd7 {[%emt 0:00:00]} 7. b3 {[%emt 0:00:00]} Bb4 {[%emt 0:00:00]} 8. Bb2 {
[%emt 0:00:00]} O-O {[%emt 0:00:00]} 9. O-O {[%emt 0:00:00]} Qe7 {[%emt 0:00:
00]} 10. Qc2 {[%emt 0:00:00]} b6 {[%emt 0:00:00]} 11. Ne5 {[%emt 0:00:00]} Bb7
{[%emt 0:00:00]} 12. Nxd7 {[%emt 0:00:00]} Qxd7 {[%emt 0:00:00]} 13. Na4 {
[%emt 0:00:00]} Qc7 {[%emt 0:00:00]} 14. c5 {[%emt 0:00:00]} b5 {[%emt 0:00:00]
} 15. Nb6 {[%emt 0:00:00]} Rae8 {[%emt 0:00:00]} 16. a4 {[%emt 0:00:00]} h6 {
[%emt 0:00:00]} 17. f4 {[%emt 0:00:00]} Nd7 {[%emt 0:00:00]} 18. Nxd7 {[%emt 0:
00:00]} Qxd7 {[%emt 0:00:00]} 19. Bc3 {[%emt 0:00:00]} Bxc3 {[%emt 0:00:00]}
20. Qxc3 {[%emt 0:00:00]} f6 {[%emt 0:00:00]} 21. h4 {[%emt 0:00:00]} f5 {
[%emt 0:00:00]} 22. h5 {[%emt 0:00:00]} g5 {[%emt 0:00:00]} 23. hxg6 {[%emt 0:
00:00]} Kg7 {[%emt 0:00:00]} 24. Kf2 {[%emt 0:00:00]} h5 {[%emt 0:00:00]} 25.
Rh1 {[%emt 0:00:00]} Rh8 {[%emt 0:00:00]} 26. Rh4 {[%emt 0:00:00]} Rh6 {
[%emt 0:00:00]} 27. Rah1 {[%emt 0:00:00]} Reh8 {[%emt 0:00:00]} 28. Be2 {
[%emt 0:00:00]} Kxg6 {[%emt 0:00:00]} 29. R1h3 {[%emt 0:00:00]} Qf7 {[%emt 0:
00:00]} 30. e4 {[%emt 0:00:00]} Kf6 {[%emt 0:00:00]} 31. e5+ {[%emt 0:00:00]}
Ke7 {[%emt 0:00:00]} 32. Qa5 {[%emt 0:00:00]} Kd7 {[%emt 0:00:00]} 33. Qb6 {
[%emt 0:00:00]} Kc8 {[%emt 0:00:00]} 34. axb5 {[%emt 0:00:00]} axb5 {[%emt 0:
00:00]} 35. b4 {[%emt 0:00:00]} Qe8 {[%emt 0:00:00]} 36. Ra3 {[%emt 0:00:00]}
R6h7 {[%emt 0:00:00]} 37. Rh1 {[%emt 0:00:33]} Qd8 {[%emt 0:00:00]} 38. Qxd8+ {
[%emt 0:00:21]} Kxd8 {[%emt 0:00:00]} 39. Rh4 {[%emt 0:00:11]} Bc8 {[%emt 0:00:
00]} 40. Ra8 {[%emt 0:00:01]} Ke7 {[%emt 0:00:00]} 41. Rxh5 {[%emt 0:00:00]}
Rxh5 {[%emt 0:00:00]} 42. Bxh5 {[%emt 0:00:00]} Rxh5 {[%emt 0:00:00]} 43. Rxc8
{[%emt 0:00:00]} Kd7 {[%emt 0:00:00]} 44. Rg8 {[%emt 0:00:00]} Rh1 {[%emt 0:00:
00]} 45. Rg7+ {[%emt 0:00:00]} Kd8 {[%emt 0:00:00]} 46. Rg6 {[%emt 0:00:00]}
Kd7 {[%emt 0:00:00]} 47. g4 {[%emt 0:00:00]} fxg4 {[%emt 0:00:00]} 48. Kg3 {
[%emt 0:00:00]} Ke7 {[%emt 0:00:00]} 49. Rg7+ {[%emt 0:00:00]} Kd8 {[%emt 0:00:
00]} 50. Rxg4 {[%emt 0:00:00]} Rg1+ {[%emt 0:00:00]} 51. Kh4 {[%emt 0:00:00]}
Rh1+ {[%emt 0:00:00]} 52. Kg3 {[%emt 0:00:00]} Rg1+ {[%emt 0:00:00]} 53. Kh4 {
[%emt 0:00:00]} Rh1+ {[%emt 0:00:00]} 54. Kg5 {[%emt 0:00:00]} Ke7 {[%emt 0:00:
00]} 55. f5 {[%emt 0:00:00]} exf5 {[%emt 0:00:00]} 56. Rh4 {[%emt 0:00:00]}
Rg1+ {[%emt 0:00:00]} 57. Kxf5 {[%emt 0:00:00]} Rf1+ {[%emt 0:00:00]} 58. Kg5 {
[%emt 0:00:00]} Rg1+ {[%emt 0:00:00]} 59. Kf5 {[%emt 0:00:00]} Rf1+ {[%emt 0:
00:00]} 60. Kg5 {[%emt 0:00:00]} Rg1+ {[%emt 0:00:00]} 61. Kf4 {[%emt 0:00:00]}
Rf1+ {[%emt 0:00:00]} 62. Ke3 {[%emt 0:00:00]} Re1+ {[%emt 0:00:00]} 63. Kd2 {
[%emt 0:00:00]} Rb1 {[%emt 0:00:00]} 64. Rh7+ {[%emt 0:00:00]} Ke8 {[%emt 0:00:
00]} 65. Rc7 {[%emt 0:00:00]} Rxb4 {[%emt 0:00:00]} 66. Kc3 {[%emt 0:00:00]}
Rc4+ {[%emt 0:00:00]} 67. Kd3 {[%emt 0:00:00]} b4 {[%emt 0:00:00]} 68. Rxc6 {
[%emt 0:00:00]} Rc3+ {[%emt 0:00:00]} 69. Kd2 {[%emt 0:00:00]} Rh3 {[%emt 0:00:
00]} 70. Rd6 {[%emt 0:00:00]} Rc3 {[%emt 0:00:00]} 71. Rxd5 {[%emt 0:00:00]}
Rc4 {[%emt 0:00:00]} 72. c6 {[%emt 0:00:00]} b3 {[%emt 0:00:00]} 73. Kd3 {
[%emt 0:00:00]} b2 {[%emt 0:00:00]} 74. Rb5 {[%emt 0:00:00]} 1-0

[Event "Gibraltar Masters 18th"]
[Site "Gibraltar"]
[Date "2020.01.22"]
[Round "2.32"]
[White "Panjwani, Raja"]
[Black "Ramirez, Alejandro"]
[Result "1/2-1/2"]
[ECO "D27"]
[WhiteElo "2444"]
[BlackElo "2574"]
[PlyCount "48"]
[EventDate "2020.01.21"]
[EventType "swiss"]
[EventRounds "10"]
[EventCountry "GGB"]
[SourceTitle "BritBase"]
[Source "John Saunders"]
[SourceDate "2021.06.05"]
[SourceVersion "1"]
[SourceVersionDate "2021.06.05"]
[SourceQuality "1"]
[TimeControl "40/100:0"]
[WhiteClock "0:43:20"]
[BlackClock "0:52:30"]

1. Nf3 {[%emt 0:00:00]} d5 {[%emt 0:00:00]} 2. d4 {[%emt 0:00:00]} Nf6 {
[%emt 0:00:00]} 3. c4 {[%emt 0:00:00]} e6 {[%emt 0:00:00]} 4. e3 {[%emt 0:00:
00]} a6 {[%emt 0:00:00]} 5. Nc3 {[%emt 0:00:00]} dxc4 {[%emt 0:00:00]} 6. a4 {
[%emt 0:00:00]} c5 {[%emt 0:00:00]} 7. Bxc4 {[%emt 0:00:00]} Nc6 {[%emt 0:00:
00]} 8. O-O {[%emt 0:00:00]} Be7 {[%emt 0:00:00]} 9. Qe2 {[%emt 0:00:00]} O-O {
[%emt 0:00:00]} 10. Rd1 {[%emt 0:00:00]} Qc7 {[%emt 0:00:00]} 11. dxc5 {
[%emt 0:00:00]} Bxc5 {[%emt 0:00:00]} 12. b3 {[%emt 0:00:00]} Na5 {[%emt 0:00:
00]} 13. Nd2 {[%emt 0:00:00]} Bd7 {[%emt 0:00:00]} 14. Bb2 {[%emt 0:00:00]}
Nxc4 {[%emt 0:00:00]} 15. Nxc4 {[%emt 0:00:00]} b5 {[%emt 0:00:00]} 16. axb5 {
[%emt 0:00:00]} axb5 {[%emt 0:00:00]} 17. Nxb5 {[%emt 0:00:00]} Bxb5 {[%emt 0:
00:00]} 18. Bxf6 {[%emt 0:00:00]} gxf6 {[%emt 0:00:00]} 19. Qg4+ {[%emt 0:00:
00]} Kh8 {[%emt 0:00:00]} 20. Qf3 {[%emt 0:00:00]} Rxa1 {[%emt 0:00:00]} 21.
Qxf6+ {[%emt 0:00:00]} Kg8 {[%emt 0:00:00]} 22. Qg5+ {[%emt 0:00:00]} Kh8 {
[%emt 0:00:00]} 23. Qf6+ {[%emt 0:00:00]} Kg8 {[%emt 0:00:00]} 24. Qg5+ {
[%emt 0:00:00]} Kh8 {[%emt 0:00:00]} 1/2-1/2

[Event "Gibraltar Masters 18th"]
[Site "Gibraltar"]
[Date "2020.01.22"]
[Round "2.33"]
[White "Sanal, Vahap"]
[Black "Sardana, Rishi"]
[Result "1/2-1/2"]
[ECO "B35"]
[WhiteElo "2569"]
[BlackElo "2437"]
[PlyCount "114"]
[EventDate "2020.01.21"]
[EventType "swiss"]
[EventRounds "10"]
[EventCountry "GGB"]
[SourceTitle "BritBase"]
[Source "John Saunders"]
[SourceDate "2021.06.05"]
[SourceVersion "1"]
[SourceVersionDate "2021.06.05"]
[SourceQuality "1"]
[TimeControl "40/100:0"]

1. e4 {[%emt 0:22:05]} c5 {[%emt 0:00:43]} 2. Nc3 {[%emt 0:00:12]} Nc6 {
[%emt 0:00:13]} 3. Nge2 {[%emt 0:00:12]} g6 {[%emt 0:01:56]} 4. d4 {[%emt 0:00:
11]} cxd4 {[%emt 0:00:08]} 5. Nxd4 {[%emt 0:00:04]} Bg7 {[%emt 0:00:05]} 6. Be3
{[%emt 0:00:08]} Nf6 {[%emt 0:00:13]} 7. Bc4 {[%emt 0:00:18]} Qa5 {[%emt 0:00:
13]} 8. O-O {[%emt 0:01:00]} O-O {[%emt 0:00:24]} 9. Bb3 {[%emt 0:01:36]} d6 {
[%emt 0:00:08]} 10. h3 {[%emt 0:00:36]} Bd7 {[%emt 0:00:07]} 11. Re1 {[%emt 0:
02:19]} Rac8 {[%emt 0:00:27]} 12. Nf3 {[%emt 0:04:04]} Ne5 {[%emt 0:28:04]} 13.
Nd2 {[%emt 0:18:26]} b5 {[%emt 0:15:36]} 14. a4 {[%emt 0:04:48]} b4 {[%emt 0:
06:27]} 15. Nd5 {[%emt 0:04:01]} Rfe8 {[%emt 0:02:10]} 16. f4 {[%emt 0:12:36]}
Nc6 {[%emt 0:00:25]} 17. Nc4 {[%emt 0:01:10]} Qd8 {[%emt 0:00:55]} 18. Nxf6+ {
[%emt 0:00:36]} Bxf6 {[%emt 0:00:25]} 19. e5 {[%emt 0:00:28]} dxe5 {[%emt 0:05:
42]} 20. Nxe5 {[%emt 0:02:16]} Bxe5 {[%emt 0:02:49]} 21. fxe5 {[%emt 0:00:15]}
Bf5 {[%emt 0:00:54]} 22. a5 {[%emt 0:22:50]} Qxd1 {[%emt 0:18:41]} 23. Rexd1 {
[%emt 0:00:24]} Nxe5 {[%emt 0:04:01]} 24. Bxa7 {[%emt 0:05:02]} Bxc2 {[%emt 0:
00:09]} 25. Bxc2 {[%emt 0:00:04]} Rxc2 {[%emt 0:00:05]} 26. a6 {[%emt 0:13:50]}
Nc6 {[%emt 0:03:22]} 27. Bb6 {[%emt 0:00:48]} Ra8 {[%emt 0:01:32]} 28. Rd7 {
[%emt 0:06:11]} b3 {[%emt 0:01:43]} 29. Rc7 {[%emt 0:00:41]} Nb4 {[%emt 0:04:
51]} 30. a7 {[%emt 0:01:28]} Rxb2 {[%emt 0:03:56]} 31. Bd4 {[%emt 0:02:56]} Rc2
{[%emt 0:03:19]} 32. Rxe7 {[%emt 0:02:12]} b2 {[%emt 0:03:17]} 33. Rae1 {
[%emt 0:02:14]} Rc1 {[%emt 0:00:41]} 34. Bxb2 {[%emt 0:00:27]} Rxe1+ {[%emt 0:
00:04]} 35. Rxe1 {[%emt 0:00:03]} Nd3 {[%emt 0:00:21]} 36. Re2 {[%emt 0:00:16]}
Nxb2 {[%emt 0:00:06]} 37. Rxb2 {[%emt 0:00:03]} Rxa7 {[%emt 0:00:05]} 38. h4 {
[%emt 0:00:22]} h6 {[%emt 0:00:48]} 39. g3 {[%emt 0:00:06]} Ra3 {[%emt 0:00:13]
} 40. Kg2 {[%emt 0:00:05]} Kg7 {[%emt 0:00:23]} 41. Rb6 {[%emt 0:00:07]} Re3 {
[%emt 0:01:00]} 42. Kf2 {[%emt 0:00:11]} Re6 {[%emt 0:00:20]} 43. Rb5 {[%emt 0:
00:06]} Kf6 {[%emt 0:00:20]} 44. Ra5 {[%emt 0:00:04]} Re5 {[%emt 0:00:19]} 45.
Ra7 {[%emt 0:00:09]} Ke6 {[%emt 0:00:14]} 46. Kf3 {[%emt 0:00:05]} h5 {[%emt 0:
00:31]} 47. Rb7 {[%emt 0:00:07]} Ra5 {[%emt 0:00:17]} 48. Kf2 {[%emt 0:00:18]}
f6 {[%emt 0:00:19]} 49. Kg2 {[%emt 0:00:08]} Kf5 {[%emt 0:00:07]} 50. Rb2 {
[%emt 0:00:04]} Ra4 {[%emt 0:01:50]} 51. Kf3 {[%emt 0:00:08]} Ra3+ {[%emt 0:00:
06]} 52. Kg2 {[%emt 0:00:01]} Ke4 {[%emt 0:01:42]} 53. Rb4+ {[%emt 0:00:12]}
Ke3 {[%emt 0:01:03]} 54. Rb6 {[%emt 0:01:53]} Ra2+ {[%emt 0:00:12]} 55. Kg1 {
[%emt 0:00:49]} Ra1+ {[%emt 0:02:06]} 56. Kg2 {[%emt 0:00:14]} Ra2+ {[%emt 0:
00:02]} 57. Kg1 {[%emt 0:00:13]} Ra1+ {[%emt 0:01:29]} 1/2-1/2

[Event "Gibraltar Masters 18th"]
[Site "Gibraltar"]
[Date "2020.01.22"]
[Round "2.34"]
[White "Womacka, Mathias"]
[Black "Yuffa, Daniil"]
[Result "0-1"]
[ECO "B92"]
[WhiteElo "2439"]
[BlackElo "2566"]
[PlyCount "52"]
[EventDate "2020.01.21"]
[EventType "swiss"]
[EventRounds "10"]
[EventCountry "GGB"]
[SourceTitle "BritBase"]
[Source "John Saunders"]
[SourceDate "2021.06.05"]
[SourceVersion "1"]
[SourceVersionDate "2021.06.05"]
[SourceQuality "1"]
[TimeControl "40/100:0"]
[WhiteClock "0:01:07"]
[BlackClock "0:35:36"]

1. e4 {[%emt 0:00:00]} c5 {[%emt 0:00:00]} 2. Nf3 {[%emt 0:00:00]} d6 {[%emt 0:
00:00]} 3. d4 {[%emt 0:00:00]} cxd4 {[%emt 0:00:00]} 4. Nxd4 {[%emt 0:00:00]}
Nf6 {[%emt 0:00:00]} 5. Nc3 {[%emt 0:00:00]} a6 {[%emt 0:00:00]} 6. Be2 {
[%emt 0:00:00]} e5 {[%emt 0:00:00]} 7. Nb3 {[%emt 0:00:00]} Be7 {[%emt 0:00:00]
} 8. O-O {[%emt 0:00:00]} O-O {[%emt 0:00:00]} 9. Qd3 {[%emt 0:00:00]} Be6 {
[%emt 0:00:00]} 10. Bd2 {[%emt 0:00:00]} Nbd7 {[%emt 0:00:00]} 11. Nd5 {
[%emt 0:00:00]} Bxd5 {[%emt 0:00:00]} 12. exd5 {[%emt 0:00:00]} Re8 {[%emt 0:
00:00]} 13. c4 {[%emt 0:00:00]} a5 {[%emt 0:00:00]} 14. Rac1 {[%emt 0:00:00]}
a4 {[%emt 0:00:00]} 15. Na1 {[%emt 0:00:00]} Nc5 {[%emt 0:00:00]} 16. Qh3 {
[%emt 0:00:00]} Nfe4 {[%emt 0:00:00]} 17. Be3 {[%emt 0:00:00]} Bg5 {[%emt 0:00:
00]} 18. Nc2 {[%emt 0:00:00]} Bxe3 {[%emt 0:00:00]} 19. Qxe3 {[%emt 0:00:00]}
f5 {[%emt 0:00:00]} 20. Na3 {[%emt 0:00:00]} f4 {[%emt 0:00:00]} 21. Qh3 {
[%emt 0:00:00]} Rf8 {[%emt 0:00:00]} 22. Nb5 {[%emt 0:00:00]} Rf6 {[%emt 0:00:
00]} 23. Qa3 {[%emt 0:00:00]} Rg6 {[%emt 0:00:00]} 24. Rc2 {[%emt 0:00:00]} Qh4
{[%emt 0:00:00]} 25. b4 {[%emt 0:00:00]} Nb3 {[%emt 0:00:00]} 26. Bf3 {[%emt 0:
00:33]} Ned2 {[%emt 0:00:00]} 0-1

[Event "Gibraltar Masters 18th"]
[Site "Gibraltar"]
[Date "2020.01.22"]
[Round "2.35"]
[White "Antipov, Mikhail Al."]
[Black "Rakotomaharo, Fy Antenaina"]
[Result "1-0"]
[ECO "D90"]
[WhiteElo "2562"]
[BlackElo "2433"]
[PlyCount "43"]
[EventDate "2020.01.21"]
[EventType "swiss"]
[EventRounds "10"]
[EventCountry "GGB"]
[SourceTitle "BritBase"]
[Source "John Saunders"]
[SourceDate "2021.06.05"]
[SourceVersion "1"]
[SourceVersionDate "2021.06.05"]
[SourceQuality "1"]
[TimeControl "40/100:0"]
[WhiteClock "0:49:55"]
[BlackClock "0:06:22"]

1. d4 {[%emt 0:00:00]} Nf6 {[%emt 0:00:00]} 2. c4 {[%emt 0:00:00]} g6 {[%emt 0:
00:00]} 3. Nc3 {[%emt 0:00:00]} d5 {[%emt 0:00:00]} 4. Nf3 {[%emt 0:00:00]} Bg7
{[%emt 0:00:00]} 5. h4 {[%emt 0:00:00]} c6 {[%emt 0:00:00]} 6. cxd5 {[%emt 0:
00:00]} cxd5 {[%emt 0:00:00]} 7. Bf4 {[%emt 0:00:00]} Nc6 {[%emt 0:00:00]} 8.
e3 {[%emt 0:00:00]} O-O {[%emt 0:00:00]} 9. Qb3 {[%emt 0:00:00]} Qa5 {[%emt 0:
00:00]} 10. Be2 {[%emt 0:00:00]} Qb4 {[%emt 0:00:00]} 11. Ne5 {[%emt 0:00:00]}
a5 {[%emt 0:00:00]} 12. O-O {[%emt 0:00:00]} Bf5 {[%emt 0:00:00]} 13. Rfc1 {
[%emt 0:00:00]} Rfc8 {[%emt 0:00:00]} 14. Qd1 {[%emt 0:00:00]} Nd8 {[%emt 0:00:
00]} 15. g4 {[%emt 0:00:00]} Be6 {[%emt 0:00:00]} 16. Na4 {[%emt 0:00:00]} Rxc1
{[%emt 0:00:00]} 17. Rxc1 {[%emt 0:00:00]} Ne4 {[%emt 0:00:00]} 18. Nd3 {
[%emt 0:00:00]} Qd2 {[%emt 0:00:00]} 19. Qxd2 {[%emt 0:00:00]} Nxd2 {[%emt 0:
00:00]} 20. Nb6 {[%emt 0:00:00]} Ra7 {[%emt 0:00:00]} 21. Nc5 {[%emt 0:00:00]}
Nc6 {[%emt 0:00:00]} 22. Rd1 {[%emt 0:00:00]} 1-0

[Event "Gibraltar Masters 18th"]
[Site "Gibraltar"]
[Date "2020.01.22"]
[Round "2.36"]
[White "Krishna, C R G."]
[Black "Aryan, Chopra"]
[Result "1/2-1/2"]
[ECO "E65"]
[WhiteElo "2436"]
[BlackElo "2562"]
[PlyCount "169"]
[EventDate "2020.01.21"]
[EventType "swiss"]
[EventRounds "10"]
[EventCountry "GGB"]
[SourceTitle "BritBase"]
[Source "John Saunders"]
[SourceDate "2021.06.05"]
[SourceVersion "1"]
[SourceVersionDate "2021.06.05"]
[SourceQuality "1"]
[TimeControl "40/100:0"]
[WhiteClock "0:14:47"]
[BlackClock "0:07:57"]

1. d4 {[%emt 0:00:00]} Nf6 {[%emt 0:00:00]} 2. c4 {[%emt 0:00:00]} g6 {[%emt 0:
00:00]} 3. g3 {[%emt 0:00:00]} Bg7 {[%emt 0:00:00]} 4. Bg2 {[%emt 0:00:00]} O-O
{[%emt 0:00:00]} 5. Nc3 {[%emt 0:00:00]} d6 {[%emt 0:00:00]} 6. Nf3 {[%emt 0:
00:00]} c5 {[%emt 0:00:00]} 7. dxc5 {[%emt 0:00:00]} dxc5 {[%emt 0:00:00]} 8.
O-O {[%emt 0:00:00]} Nc6 {[%emt 0:00:00]} 9. Qa4 {[%emt 0:00:00]} Bd7 {[%emt 0:
00:00]} 10. Be3 {[%emt 0:00:00]} Na5 {[%emt 0:00:00]} 11. Qc2 {[%emt 0:00:00]}
Nxc4 {[%emt 0:00:00]} 12. Bxc5 {[%emt 0:00:00]} Rc8 {[%emt 0:00:00]} 13. Bd4 {
[%emt 0:00:00]} Qa5 {[%emt 0:00:00]} 14. Rfd1 {[%emt 0:00:00]} Bf5 {[%emt 0:00:
00]} 15. e4 {[%emt 0:00:00]} Bg4 {[%emt 0:00:00]} 16. e5 {[%emt 0:00:00]} Nd7 {
[%emt 0:00:00]} 17. b4 {[%emt 0:00:00]} Qxb4 {[%emt 0:00:00]} 18. Nd5 {[%emt 0:
00:00]} Qa3 {[%emt 0:00:00]} 19. Rd3 {[%emt 0:00:00]} Ncxe5 {[%emt 0:00:00]}
20. Rxa3 {[%emt 0:00:00]} Rxc2 {[%emt 0:00:00]} 21. Ne3 {[%emt 0:00:00]} Nxf3+
{[%emt 0:00:00]} 22. Bxf3 {[%emt 0:00:00]} Bxd4 {[%emt 0:00:00]} 23. Nxc2 {
[%emt 0:00:00]} Bxa1 {[%emt 0:00:00]} 24. Bxg4 {[%emt 0:00:00]} Ne5 {[%emt 0:
00:00]} 25. Be2 {[%emt 0:00:00]} Rc8 {[%emt 0:00:00]} 26. Nxa1 {[%emt 0:00:00]}
Rc1+ {[%emt 0:00:00]} 27. Kg2 {[%emt 0:00:00]} Rxa1 {[%emt 0:00:00]} 28. Rxa7 {
[%emt 0:00:00]} e6 {[%emt 0:00:00]} 29. Bb5 {[%emt 0:00:00]} g5 {[%emt 0:00:00]
} 30. h3 {[%emt 0:00:19]} h5 {[%emt 0:00:00]} 31. Be2 {[%emt 0:00:20]} h4 {
[%emt 0:00:00]} 32. Ra5 {[%emt 0:00:07]} f6 {[%emt 0:00:00]} 33. gxh4 {[%emt 0:
00:00]} gxh4 {[%emt 0:00:00]} 34. Ra4 {[%emt 0:00:00]} Kg7 {[%emt 0:00:00]} 35.
Bc4 {[%emt 0:00:21]} Nxc4 {[%emt 0:00:00]} 36. Rxc4 {[%emt 0:00:00]} Rxa2 {
[%emt 0:00:00]} 37. Rc7+ {[%emt 0:00:00]} Kg6 {[%emt 0:00:00]} 38. Rxb7 {
[%emt 0:00:00]} e5 {[%emt 0:00:00]} 39. Rb4 {[%emt 0:00:00]} Kg5 {[%emt 0:00:
00]} 40. Rg4+ {[%emt 0:00:00]} Kh5 {[%emt 0:00:00]} 41. Re4 {[%emt 0:01:40]}
Rd2 {[%emt 0:00:00]} 42. Rg4 {[%emt 0:00:00]} f5 {[%emt 0:00:00]} 43. Rg8 {
[%emt 0:00:00]} e4 {[%emt 0:00:00]} 44. Kf1 {[%emt 0:00:00]} Rc2 {[%emt 0:00:
00]} 45. Kg1 {[%emt 0:00:00]} Rc6 {[%emt 0:00:00]} 46. Kf1 {[%emt 0:00:00]} Kh6
{[%emt 0:00:00]} 47. Ra8 {[%emt 0:00:00]} Kg5 {[%emt 0:00:00]} 48. Ra4 {
[%emt 0:00:00]} Kf4 {[%emt 0:00:00]} 49. Kg2 {[%emt 0:00:00]} Rg6+ {[%emt 0:00:
00]} 50. Kf1 {[%emt 0:00:00]} Rd6 {[%emt 0:00:00]} 51. Kg2 {[%emt 0:00:00]} Rd2
{[%emt 0:00:00]} 52. Rb4 {[%emt 0:00:00]} Ke5 {[%emt 0:00:00]} 53. Rb8 {
[%emt 0:00:00]} f4 {[%emt 0:00:00]} 54. Re8+ {[%emt 0:00:00]} Kd4 {[%emt 0:00:
00]} 55. Kf1 {[%emt 0:00:00]} e3 {[%emt 0:00:00]} 56. fxe3+ {[%emt 0:00:00]}
fxe3 {[%emt 0:00:00]} 57. Ke1 {[%emt 0:00:00]} Ra2 {[%emt 0:00:00]} 58. Re7 {
[%emt 0:00:00]} Kd3 {[%emt 0:00:00]} 59. Rd7+ {[%emt 0:00:00]} Ke4 {[%emt 0:00:
00]} 60. Rf7 {[%emt 0:00:00]} Ra1+ {[%emt 0:00:00]} 61. Ke2 {[%emt 0:00:00]}
Ra2+ {[%emt 0:00:00]} 62. Ke1 {[%emt 0:00:00]} Rh2 {[%emt 0:01:10]} 63. Re7+ {
[%emt 0:00:00]} Kf3 {[%emt 0:00:00]} 64. Rf7+ {[%emt 0:00:00]} Kg3 {[%emt 0:00:
00]} 65. Re7 {[%emt 0:00:00]} Kf3 {[%emt 0:00:00]} 66. Rf7+ {[%emt 0:00:00]}
Kg2 {[%emt 0:00:00]} 67. Ke2 {[%emt 0:00:00]} Rxh3 {[%emt 0:00:00]} 68. Rh7 {
[%emt 0:00:00]} Kg1 {[%emt 0:00:00]} 69. Ke1 {[%emt 0:00:00]} Rh2 {[%emt 0:00:
00]} 70. Rh8 {[%emt 0:00:00]} h3 {[%emt 0:00:00]} 71. Rh7 {[%emt 0:00:00]} Rh1
{[%emt 0:00:00]} 72. Ke2 {[%emt 0:00:00]} Rh2+ {[%emt 0:00:00]} 73. Ke1 {
[%emt 0:00:00]} Rh1 {[%emt 0:00:00]} 74. Ke2 {[%emt 0:00:00]} Kg2 {[%emt 0:00:
00]} 75. Rg7+ {[%emt 0:00:00]} Kh2 {[%emt 0:00:00]} 76. Kxe3 {[%emt 0:00:00]}
Rg1 {[%emt 0:00:00]} 77. Rh7 {[%emt 0:00:00]} Kg2 {[%emt 0:00:00]} 78. Rg7+ {
[%emt 0:00:00]} Kf1 {[%emt 0:00:00]} 79. Rf7+ {[%emt 0:00:00]} Ke1 {[%emt 0:00:
00]} 80. Ra7 {[%emt 0:00:00]} Rg3+ {[%emt 0:00:00]} 81. Kf4 {[%emt 0:00:00]}
Rd3 {[%emt 0:00:00]} 82. Ra1+ {[%emt 0:00:00]} Ke2 {[%emt 0:00:00]} 83. Ra2+ {
[%emt 0:00:00]} Rd2 {[%emt 0:00:00]} 84. Rxd2+ {[%emt 0:00:00]} Kxd2 {[%emt 0:
00:00]} 85. Kg3 {[%emt 0:00:00]} 1/2-1/2

[Event "Gibraltar Masters 18th"]
[Site "Gibraltar"]
[Date "2020.01.22"]
[Round "2.37"]
[White "Mendonca, Leon Luke"]
[Black "Lalith, Babu M R"]
[Result "1/2-1/2"]
[ECO "E90"]
[WhiteElo "2417"]
[BlackElo "2558"]
[PlyCount "67"]
[EventDate "2020.01.21"]
[EventType "swiss"]
[EventRounds "10"]
[EventCountry "GGB"]
[SourceTitle "BritBase"]
[Source "John Saunders"]
[SourceDate "2021.06.05"]
[SourceVersion "1"]
[SourceVersionDate "2021.06.05"]
[SourceQuality "1"]
[TimeControl "40/100:0"]
[WhiteClock "0:00:59"]
[BlackClock "0:32:47"]

1. d4 {[%emt 0:00:00]} Nf6 {[%emt 0:00:00]} 2. c4 {[%emt 0:00:00]} g6 {[%emt 0:
00:00]} 3. Nc3 {[%emt 0:00:00]} Bg7 {[%emt 0:00:00]} 4. e4 {[%emt 0:00:00]} d6
{[%emt 0:00:00]} 5. h3 {[%emt 0:00:00]} O-O {[%emt 0:00:00]} 6. Be3 {[%emt 0:
00:00]} c5 {[%emt 0:00:00]} 7. Nf3 {[%emt 0:00:00]} cxd4 {[%emt 0:00:00]} 8.
Nxd4 {[%emt 0:00:00]} b6 {[%emt 0:00:00]} 9. g4 {[%emt 0:00:00]} Bb7 {[%emt 0:
00:00]} 10. Bg2 {[%emt 0:00:00]} Nbd7 {[%emt 0:00:00]} 11. O-O {[%emt 0:00:00]}
Nc5 {[%emt 0:00:00]} 12. Qc2 {[%emt 0:00:00]} e5 {[%emt 0:00:00]} 13. Nde2 {
[%emt 0:00:00]} Ne6 {[%emt 0:00:00]} 14. Rad1 {[%emt 0:00:00]} Ne8 {[%emt 0:00:
00]} 15. f4 {[%emt 0:00:00]} exf4 {[%emt 0:00:00]} 16. Nxf4 {[%emt 0:00:00]}
N8c7 {[%emt 0:00:00]} 17. Nfd5 {[%emt 0:00:00]} Be5 {[%emt 0:00:00]} 18. Qf2 {
[%emt 0:00:00]} f6 {[%emt 0:00:00]} 19. Qd2 {[%emt 0:00:00]} Rc8 {[%emt 0:00:
00]} 20. b3 {[%emt 0:00:00]} Rf7 {[%emt 0:00:00]} 21. Rf2 {[%emt 0:00:00]} Qf8
{[%emt 0:00:00]} 22. Rdf1 {[%emt 0:00:00]} Nc5 {[%emt 0:00:00]} 23. g5 {
[%emt 0:00:00]} Nxd5 {[%emt 0:00:00]} 24. Nxd5 {[%emt 0:00:00]} Bxd5 {[%emt 0:
00:00]} 25. Qxd5 {[%emt 0:00:00]} Na6 {[%emt 0:00:00]} 26. h4 {[%emt 0:00:00]}
Nc7 {[%emt 0:00:00]} 27. Qd1 {[%emt 0:00:00]} Qe7 {[%emt 0:00:00]} 28. gxf6 {
[%emt 0:00:00]} Qe6 {[%emt 0:00:00]} 29. Bg5 {[%emt 0:00:00]} Rcf8 {[%emt 0:00:
00]} 30. Bh6 {[%emt 0:00:00]} Re8 {[%emt 0:00:00]} 31. Bg5 {[%emt 0:00:00]}
Ref8 {[%emt 0:00:00]} 32. Bh6 {[%emt 0:00:00]} Re8 {[%emt 0:00:00]} 33. Bg5 {
[%emt 0:00:20]} Ref8 {[%emt 0:00:00]} 34. Bh6 {[%emt 0:00:21]} 1/2-1/2